fUST/lending_fUST_20250310
["ID","MTS","AMOUNT","RATE_DAILY","PERIOD"]
[355796039,1741567844213,-500.0,0.0005589,120]
[355796040,1741567844223,-2362.94,0.0005589,120]
[355796041,1741567844359,-500.0,0.0005589,120]
[355796042,1741567844369,-802.74,0.0005589,120]
[355796043,1741567844380,-994.75,0.0005589,120]
[355796044,1741567844389,-759.18,0.0005589,120]
[355796045,1741567844399,-500.0,0.0005589,120]
[355796046,1741567844410,-2333.05,0.0005589,120]
[355796047,1741567844420,-500.0,0.0005589,120]
[355796048,1741567844431,-500.0,0.0005589,120]
[355796049,1741567844441,-500.0,0.0005589,30]
[355796050,1741567844452,-500.0,0.0005589,120]
[355796051,1741567844462,-500.0,0.0005589,120]
[355796052,1741567844471,-500.0,0.0005589,120]
[355796053,1741567844481,-706.42,0.0005589,120]
[355796054,1741567844492,-519.61,0.0005589,120]
[355796055,1741567844502,-500.0,0.0005589,120]
[355796056,1741567844512,-500.0,0.0005589,120]
[355796057,1741567844522,-621.82,0.0005589,120]
[355796058,1741567844531,-500.0,0.0005589,120]
[355796059,1741567844541,-702.08,0.0005589,120]
[355796060,1741567844551,-500.0,0.0005589,120]
[355796061,1741567844562,-661.02,0.0005589,120]
[355796062,1741567844571,-500.0,0.0005589,120]
[355796063,1741567844581,-1000.0,0.00055941,15]
[355796064,1741567844591,-151.0,0.00056154,120]
[355796065,1741567844601,-160.059105,0.00056154,120]
[355796066,1741567844611,-160.059105,0.00056154,120]
[355796067,1741567844621,-151.0,0.00056154,120]
[355796068,1741567844631,-14531.72808101,0.00056164,71]
[355796069,1741567844641,-500.0,0.00056164,120]
[355796070,1741567844658,-500.0,0.00056164,120]
[355796071,1741567844668,-500.0,0.00056164,120]
[355796072,1741567844678,-500.0,0.00056164,120]
[355796073,1741567844688,-500.0,0.00056164,120]
[355796074,1741567844698,-500.0,0.00056164,120]
[355796075,1741567844708,-506.84,0.00056164,120]
[355796076,1741567844718,-500.0,0.00056164,120]
[355796077,1741567844727,-500.0,0.00056164,120]
[355796078,1741567844737,-500.0,0.00056164,120]
[355796079,1741567844747,-500.0,0.00056164,120]
[355796080,1741567844757,-500.0,0.00056164,120]
[355796081,1741567844767,-500.0,0.00056164,120]
[355796082,1741567844777,-500.0,0.00056164,120]
[355796083,1741567844787,-500.0,0.00056164,120]
[355796084,1741567844798,-500.0,0.00056164,120]
[355796085,1741567844813,-500.0,0.00056164,120]
[355796086,1741567844824,-500.0,0.00056164,120]
[355796087,1741567844834,-500.0,0.00056164,120]
[355796088,1741567844845,-500.0,0.00056164,120]
[355796089,1741567844856,-500.0,0.00056164,120]
[355796090,1741567844865,-500.0,0.00056164,120]
[355796091,1741567844876,-500.0,0.00056164,120]
[355796092,1741567844887,-500.0,0.00056164,120]
[355796093,1741567844897,-500.0,0.00056164,120]
[355796094,1741567844907,-500.0,0.00056164,120]
[355796095,1741567844917,-500.0,0.00056164,120]
[355796096,1741567844927,-500.0,0.00056164,120]
[355796097,1741567844937,-500.0,0.00056164,120]
[355796098,1741567844947,-500.0,0.00056164,120]
[355796099,1741567844958,-500.0,0.00056164,120]
[355796100,1741567844966,-500.0,0.00056164,120]
[355796101,1741567844974,-500.0,0.00056164,120]
[355796102,1741567844982,-500.0,0.00056164,120]
[355796103,1741567844990,-623.2,0.00056164,120]
[355796104,1741567844998,-500.0,0.00056164,120]
[355796105,1741567845006,-500.0,0.00056164,120]
[355796106,1741567845015,-500.0,0.00056164,120]
[355796107,1741567845023,-500.0,0.00056164,120]
[355796108,1741567845031,-626.73,0.00056164,120]
[355796109,1741567845040,-500.0,0.00056164,120]
[355796110,1741567845050,-500.0,0.00056164,120]
[355796111,1741567845059,-500.0,0.00056164,120]
[355796112,1741567845068,-1005.52,0.00056164,120]
[355796113,1741567845078,-610.16,0.00056164,120]
[355796114,1741567845088,-500.0,0.00056164,120]
[355796115,1741567845098,-500.0,0.00056164,120]
[355796116,1741567845108,-635.81208832,0.00056164,120]
[355796117,1741567845118,-500.0,0.00056164,120]
[355796118,1741567845128,-500.0,0.00056164,120]
[355796119,1741567845138,-500.0,0.00056164,120]
[355796120,1741567845148,-500.0,0.00056164,120]
[355796121,1741567845158,-540.66,0.00056164,120]
[355796122,1741567845168,-595.44,0.00056164,120]
[355796123,1741567845178,-500.0,0.00056164,120]
[355796124,1741567845187,-500.0,0.00056164,120]
[355796125,1741567845197,-1357.25,0.00056164,120]
[355796126,1741567845208,-2110.39,0.00056164,120]
[355796127,1741567845218,-624.58,0.00056164,120]
[355796128,1741567845228,-1942.94,0.00056164,120]
[355796129,1741567845238,-500.0,0.00056164,120]
[355796130,1741567845248,-500.0,0.00056164,120]
[355796131,1741567845259,-2362.94,0.00056164,120]
[355796132,1741567845268,-500.0,0.00056164,120]
[355796133,1741567845279,-151.0,0.00056164,10]
[355796134,1741567845288,-802.74,0.00056164,120]
[355796135,1741567845298,-994.75,0.00056164,120]
[355796136,1741567845311,-759.18,0.00056164,120]
[355796137,1741567845327,-2333.05,0.00056164,120]
[355796138,1741567845341,-500.0,0.00056164,120]
[355796139,1741567845360,-151.0,0.00056164,120]
[355796140,1741567845375,-500.0,0.00056164,120]
[355796141,1741567845387,-500.0,0.00056164,120]
[355796142,1741567845402,-500.0,0.00056164,30]
[355796143,1741567845416,-500.0,0.00056164,120]
[355796144,1741567845430,-151.0,0.00056164,120]
[355796145,1741567845444,-500.0,0.00056164,120]
[355796146,1741567845459,-500.0,0.00056164,120]
[355796147,1741567845472,-706.42,0.00056164,120]
[355796148,1741567845487,-519.61,0.00056164,120]
[355796149,1741567845502,-500.0,0.00056164,120]
[355796150,1741567845519,-500.0,0.00056164,120]
[355796151,1741567845533,-621.82,0.00056164,120]
[355796152,1741567845547,-500.0,0.00056164,120]
[355796153,1741567845561,-702.08,0.00056164,120]
[355796154,1741567845575,-500.0,0.00056164,120]
[355796155,1741567845592,-661.02,0.00056164,120]
[355796156,1741567845608,-500.0,0.00056164,120]
[355796157,1741567845623,-210.716242,0.00056428,30]
[355796158,1741567845636,-210.716242,0.00056428,30]
[355796159,1741567845648,-701.132744,0.00056428,120]
[355796160,1741567845663,-701.132744,0.00056428,120]
[355796161,1741567845675,-151.0,0.00056428,120]
[355796162,1741567845689,-828.562556,0.00056428,120]
[355796163,1741567845704,-828.562556,0.00056428,120]
[355796164,1741567845718,-500.0,0.00056438,120]
[355796165,1741567845731,-500.0,0.00056438,120]
[355796166,1741567845747,-377.28,0.00056438,120]
[355796167,1741567845761,-500.0,0.00056438,120]
[355796168,1741567845776,-500.0,0.00056438,120]
[355796169,1741567845791,-500.0,0.00056438,120]
[355796170,1741567845803,-500.0,0.00056438,120]
[355796171,1741567845815,-500.0,0.00056438,120]
[355796172,1741567845829,-500.0,0.00056438,120]
[355796173,1741567845843,-500.0,0.00056438,120]
[355796174,1741567845859,-502.86,0.00056438,120]
[355796175,1741567845876,-500.0,0.00056438,120]
[355796177,1741567845892,-500.0,0.00056438,120]
[355796178,1741567845903,-500.0,0.00056438,120]
[355796180,1741567845917,-500.0,0.00056438,120]
[355796182,1741567845930,-500.0,0.00056438,120]
[355796183,1741567845944,-500.0,0.00056438,120]
[355796184,1741567845957,-500.0,0.00056438,120]
[355796185,1741567845969,-500.0,0.00056438,120]
[355796186,1741567845981,-623.2,0.00056438,120]
[355796187,1741567845993,-500.0,0.00056438,120]
[355796188,1741567846006,-500.0,0.00056438,120]
[355796189,1741567846018,-500.0,0.00056438,120]
[355796190,1741567846030,-500.0,0.00056438,120]
[355796191,1741567846042,-626.73,0.00056438,120]
[355796192,1741567846055,-500.0,0.00056438,120]
[355796193,1741567846089,-500.0,0.00056438,120]
[355796194,1741567846107,-542.22,0.00056438,120]
[355796195,1741567846122,-1005.52,0.00056438,120]
[355796196,1741567846139,-610.16,0.00056438,120]
[355796197,1741567846155,-500.0,0.00056438,120]
[355796198,1741567846170,-500.0,0.00056438,120]
[355796199,1741567846185,-500.0,0.00056438,120]
[355796200,1741567846201,-500.0,0.00056438,120]
[355796201,1741567846217,-500.0,0.00056438,120]
[355796202,1741567846231,-540.66,0.00056438,120]
[355796204,1741567846244,-595.44,0.00056438,120]
[355796207,1741567846258,-500.0,0.00056438,120]
[355796209,1741567846270,-521.51708385,0.00056438,120]
[355796211,1741567846283,-573.755254,0.00056438,120]
[355796212,1741567846297,-573.755254,0.00056438,120]
[355796213,1741567846311,-1357.25,0.00056438,120]
[355796214,1741567846324,-2110.39,0.00056438,120]
[355796215,1741567846338,-624.58,0.00056438,120]
[355796217,1741567846351,-1942.94,0.00056438,120]
[355796219,1741567846364,-500.0,0.00056438,120]
[355796221,1741567846378,-2362.94,0.00056438,120]
[355796222,1741567846391,-500.0,0.00056438,120]
[355796223,1741567846404,-802.74,0.00056438,120]
[355796224,1741567846418,-994.75,0.00056438,120]
[355796225,1741567846431,-759.18,0.00056438,120]
[355796226,1741567846443,-2333.05,0.00056438,120]
[355796227,1741567846455,-500.0,0.00056438,120]
[355796228,1741567846466,-500.0,0.00056438,120]
[355796229,1741567846481,-500.0,0.00056438,120]
[355796230,1741567846495,-500.0,0.00056438,120]
[355796231,1741567846509,-706.42,0.00056438,120]
[355796232,1741567846523,-519.61,0.00056438,120]
[355796233,1741567846537,-243.48,0.00056438,120]
[355796234,1741567846551,-500.0,0.00056438,120]
[355796235,1741567846565,-621.82,0.00056438,120]
[355796236,1741567846578,-500.0,0.00056438,120]
[355796237,1741567846591,-702.08,0.00056438,120]
[355796238,1741567846605,-322.86,0.00056438,120]
[355796239,1741567846618,-661.02,0.00056438,120]
[355796240,1741567846632,-1000.0,0.00056552,15]
[355796241,1741567846644,-1000.0,0.00056552,14]
[355796242,1741567846657,-1000.0,0.00056552,15]
[355796243,1741567846670,-475.54,0.00056712,120]
[355796244,1741567846876,-500.0,0.00056712,120]
[355796245,1741567846908,-500.0,0.00056712,120]
[355796246,1741567846918,-500.0,0.00056712,120]
[355796247,1741567846928,-500.0,0.00056712,120]
[355796248,1741567846938,-500.0,0.00056712,120]
[355796249,1741567846948,-500.0,0.00056712,120]
[355796250,1741567846957,-500.0,0.00056712,120]
[355796251,1741567846967,-500.0,0.00056712,120]
[355796252,1741567846977,-500.0,0.00056712,120]
[355796253,1741567846987,-767.54256,0.00056712,120]
[355796254,1741567846997,-767.54256,0.00056712,120]
[355796255,1741567847006,-500.0,0.00056712,120]
[355796256,1741567847015,-500.0,0.00056712,120]
[355796257,1741567847025,-500.0,0.00056712,120]
[355796258,1741567847034,-500.0,0.00056712,120]
[355796259,1741567847044,-500.0,0.00056712,120]
[355796260,1741567847053,-564.4,0.00056712,120]
[355796261,1741567847062,-500.0,0.00056712,120]
[355796262,1741567847071,-623.2,0.00056712,120]
[355796263,1741567847081,-500.0,0.00056712,120]
[355796264,1741567847090,-500.0,0.00056712,120]
[355796265,1741567847100,-500.0,0.00056712,120]
[355796266,1741567847109,-500.0,0.00056712,120]
[355796267,1741567847118,-626.73,0.00056712,120]
[355796268,1741567847128,-500.0,0.00056712,120]
[355796269,1741567847137,-637.72,0.00056712,120]
[355796270,1741567847147,-1005.52,0.00056712,120]
[355796271,1741567847157,-610.16,0.00056712,120]
[355796272,1741567847166,-191.68,0.00056712,120]
[355796273,1741567847177,-500.0,0.00056712,120]
[355796274,1741567847187,-500.0,0.00056712,120]
[355796275,1741567847197,-151.0,0.00056712,120]
[355796276,1741567847207,-500.0,0.00056712,120]
[355796277,1741567847217,-500.0,0.00056712,120]
[355796278,1741567847226,-540.66,0.00056712,120]
[355796279,1741567847235,-595.44,0.00056712,120]
[355796280,1741567847245,-500.0,0.00056712,120]
[355796281,1741567847255,-1357.25,0.00056712,120]
[355796282,1741567847265,-2110.39,0.00056712,120]
[355796283,1741567847275,-624.58,0.00056712,120]
[355796284,1741567847295,-1942.94,0.00056712,120]
[355796285,1741567847305,-500.0,0.00056712,120]
[355796286,1741567847315,-2362.94,0.00056712,120]
[355796287,1741567847325,-500.0,0.00056712,120]
[355796288,1741567847338,-802.74,0.00056712,120]
[355796289,1741567847348,-994.75,0.00056712,120]
[355796290,1741567847357,-759.18,0.00056712,120]
[355796291,1741567847367,-2333.05,0.00056712,120]
[355796292,1741567847377,-500.0,0.00056712,120]
[355796294,1741567847387,-500.0,0.00056712,120]
[355796295,1741567847396,-500.0,0.00056712,120]
[355796297,1741567847406,-500.0,0.00056712,120]
[355796299,1741567847415,-706.42,0.00056712,120]
[355796301,1741567847425,-519.61,0.00056712,120]
[355796302,1741567847435,-500.0,0.00056712,120]
[355796304,1741567847445,-621.82,0.00056712,120]
[355796305,1741567847455,-465.04,0.00056712,120]
[355796306,1741567847465,-702.08,0.00056712,120]
[355796307,1741567847475,-661.02,0.00056712,120]
[355796308,1741567847485,-151.0,0.00056976,120]
[355796309,1741567847494,-151.0,0.00056976,120]
[355796310,1741567847505,-151.0,0.00056976,120]
[355796311,1741567847515,-500.0,0.00056986,120]
[355796312,1741567847527,-500.0,0.00056986,120]
[355796313,1741567847538,-500.0,0.00056986,120]
[355796314,1741567847548,-500.0,0.00056986,120]
[355796315,1741567847560,-500.0,0.00056986,120]
[355796316,1741567847570,-500.0,0.00056986,120]
[355796317,1741567847580,-500.0,0.00056986,120]
[355796318,1741567847590,-500.0,0.00056986,120]
[355796319,1741567847601,-500.0,0.00056986,120]
[355796320,1741567847611,-500.0,0.00056986,120]
[355796321,1741567847621,-500.0,0.00056986,120]
[355796322,1741567847632,-221.66,0.00056986,120]
[355796323,1741567847642,-500.0,0.00056986,120]
[355796324,1741567847652,-500.0,0.00056986,120]
[355796325,1741567847662,-500.0,0.00056986,120]
[355796326,1741567847671,-623.2,0.00056986,120]
[355796327,1741567847680,-500.0,0.00056986,120]
[355796328,1741567847690,-500.0,0.00056986,120]
[355796329,1741567847700,-500.0,0.00056986,120]
[355796330,1741567847711,-500.0,0.00056986,120]
[355796331,1741567847721,-626.73,0.00056986,120]
[355796332,1741567847732,-597.68,0.00056986,120]
[355796333,1741567847743,-1005.52,0.00056986,120]
[355796334,1741567847753,-610.16,0.00056986,120]
[355796335,1741567847763,-500.0,0.00056986,120]
[355796336,1741567847773,-500.0,0.00056986,120]
[355796337,1741567847783,-500.0,0.00056986,120]
[355796338,1741567847794,-500.0,0.00056986,120]
[355796339,1741567847805,-540.66,0.00056986,120]
[355796340,1741567847815,-595.44,0.00056986,120]
[355796341,1741567847828,-500.0,0.00056986,120]
[355796342,1741567847838,-1357.25,0.00056986,120]
[355796343,1741567847848,-2110.39,0.00056986,120]
[355796344,1741567847858,-624.58,0.00056986,120]
[355796345,1741567847870,-1942.94,0.00056986,120]
[355796346,1741567847880,-500.0,0.00056986,120]
[355796347,1741567847891,-2362.94,0.00056986,120]
[355796348,1741567847901,-500.0,0.00056986,120]
[355796349,1741567847913,-802.74,0.00056986,120]
[355796350,1741567847924,-994.75,0.00056986,120]
[355796351,1741567847935,-759.18,0.00056986,120]
[355796352,1741567847946,-2333.05,0.00056986,120]
[355796353,1741567847957,-500.0,0.00056986,120]
[355796354,1741567847967,-500.0,0.00056986,120]
[355796355,1741567847978,-500.0,0.00056986,120]
[355796356,1741567847988,-500.0,0.00056986,120]
[355796357,1741567847999,-706.42,0.00056986,120]
[355796358,1741567848009,-519.61,0.00056986,120]
[355796359,1741567848020,-500.0,0.00056986,120]
[355796360,1741567848031,-621.82,0.00056986,120]
[355796361,1741567848041,-702.08,0.00056986,120]
[355796362,1741567848052,-661.02,0.00056986,120]
[355796363,1741567848062,-8801.04206619,0.0005716,2]
[355796364,1741567848074,-500.0,0.0005726,120]
[355796365,1741567848085,-500.0,0.0005726,120]
[355796366,1741567848096,-157.65103,0.0005726,120]
[355796367,1741567848106,-500.0,0.0005726,120]
[355796368,1741567848117,-500.0,0.0005726,120]
[355796369,1741567848127,-500.0,0.0005726,120]
[355796370,1741567848138,-500.0,0.0005726,120]
[355796371,1741567848148,-561.42,0.0005726,120]
[355796372,1741567848158,-500.0,0.0005726,120]
[355796373,1741567848168,-151.0,0.0005726,120]
[355796374,1741567848179,-151.0,0.0005726,120]
[355796375,1741567848190,-500.0,0.0005726,120]
[355796376,1741567848199,-500.0,0.0005726,120]
[355796377,1741567848210,-500.0,0.0005726,120]
[355796378,1741567848220,-151.0,0.0005726,120]
[355796379,1741567848231,-543.54,0.0005726,120]
[355796380,1741567848242,-500.0,0.0005726,120]
[355796381,1741567848252,-188.34,0.0005726,120]
[355796382,1741567848263,-623.2,0.0005726,120]
[355796383,1741567848273,-500.0,0.0005726,120]
[355796384,1741567848283,-500.0,0.0005726,120]
[355796385,1741567848294,-500.0,0.0005726,120]
[355796386,1741567848304,-500.0,0.0005726,120]
[355796387,1741567848315,-626.73,0.0005726,120]
[355796388,1741567848325,-1005.52,0.0005726,120]
[355796389,1741567848335,-610.16,0.0005726,120]
[355796390,1741567848345,-500.0,0.0005726,120]
[355796391,1741567848355,-500.0,0.0005726,120]
[355796392,1741567848366,-475.565554,0.0005726,120]
[355796393,1741567848376,-500.0,0.0005726,120]
[355796394,1741567848387,-511.62,0.0005726,120]
[355796395,1741567848397,-475.565554,0.0005726,120]
[355796396,1741567848408,-540.66,0.0005726,120]
[355796397,1741567848418,-595.44,0.0005726,120]
[355796398,1741567848429,-500.0,0.0005726,120]
[355796399,1741567848440,-1357.25,0.0005726,120]
[355796400,1741567848450,-2110.39,0.0005726,120]
[355796401,1741567848460,-624.58,0.0005726,120]
[355796402,1741567848471,-1942.94,0.0005726,120]
[355796403,1741567848482,-500.0,0.0005726,120]
[355796404,1741567848493,-2362.94,0.0005726,120]
[355796405,1741567848508,-500.0,0.0005726,120]
[355796406,1741567848518,-802.74,0.0005726,120]
[355796407,1741567848530,-994.75,0.0005726,120]
[355796408,1741567848541,-759.18,0.0005726,120]
[355796409,1741567848552,-2333.05,0.0005726,120]
[355796410,1741567848563,-500.0,0.0005726,120]
[355796411,1741567848574,-500.0,0.0005726,120]
[355796412,1741567848584,-500.0,0.0005726,120]
[355796413,1741567848595,-500.0,0.0005726,120]
[355796414,1741567848605,-706.42,0.0005726,120]
[355796415,1741567848615,-519.61,0.0005726,120]
[355796416,1741567848625,-500.0,0.0005726,120]
[355796417,1741567848636,-247.438477,0.0005726,120]
[355796418,1741567848646,-621.82,0.0005726,120]
[355796419,1741567848657,-702.08,0.0005726,120]
[355796420,1741567848667,-661.02,0.0005726,120]
[355796421,1741567848677,-500.0,0.00057534,120]
[355796422,1741567848687,-500.0,0.00057534,120]
[355796423,1741567848699,-500.0,0.00057534,120]
[355796424,1741567848709,-215.56,0.00057534,120]
[355796425,1741567848720,-500.0,0.00057534,120]
[355796426,1741567848731,-500.0,0.00057534,120]
[355796427,1741567848738,-500.0,0.00057534,120]
[355796428,1741567848746,-151.0,0.00057534,120]
[355796429,1741567848755,-518.32,0.00057534,120]
[355796430,1741567848766,-500.0,0.00057534,120]
[355796431,1741567848776,-500.0,0.00057534,120]
[355796432,1741567848787,-500.0,0.00057534,120]
[355796433,1741567848797,-160.059105,0.00057534,120]
[355796434,1741567848812,-160.059105,0.00057534,120]
[355796435,1741567848823,-623.2,0.00057534,120]
[355796436,1741567848834,-508.53479786,0.00057534,120]
[355796437,1741567848846,-500.0,0.00057534,120]
[355796438,1741567848856,-500.0,0.00057534,120]
[355796439,1741567848866,-500.0,0.00057534,120]
[355796440,1741567848877,-626.73,0.00057534,120]
[355796441,1741567848888,-1005.52,0.00057534,120]
[355796442,1741567848899,-610.16,0.00057534,120]
[355796443,1741567848909,-500.0,0.00057534,120]
[355796444,1741567848919,-151.0,0.00057534,120]
[355796445,1741567848930,-500.0,0.00057534,120]
[355796446,1741567848940,-500.0,0.00057534,120]
[355796447,1741567848950,-540.66,0.00057534,120]
[355796448,1741567848960,-595.44,0.00057534,120]
[355796449,1741567848970,-500.0,0.00057534,120]
[355796450,1741567848980,-1357.25,0.00057534,120]
[355796451,1741567848990,-2110.39,0.00057534,120]
[355796452,1741567849001,-624.58,0.00057534,120]
[355796453,1741567849012,-1942.94,0.00057534,120]
[355796454,1741567849022,-500.0,0.00057534,120]
[355796455,1741567849039,-2362.94,0.00057534,120]
[355796456,1741567849050,-500.0,0.00057534,120]
[355796457,1741567849060,-802.74,0.00057534,120]
[355796458,1741567849072,-994.75,0.00057534,120]
[355796459,1741567849091,-759.18,0.00057534,120]
[355796460,1741567849102,-2333.05,0.00057534,120]
[355796461,1741567849112,-500.0,0.00057534,120]
[355796462,1741567849127,-500.0,0.00057534,120]
[355796463,1741567849138,-500.0,0.00057534,120]
[355796464,1741567849149,-500.0,0.00057534,120]
[355796465,1741567849160,-706.42,0.00057534,120]
[355796466,1741567849172,-519.61,0.00057534,120]
[355796467,1741567849183,-500.0,0.00057534,120]
[355796468,1741567849194,-621.82,0.00057534,120]
[355796469,1741567849206,-702.08,0.00057534,120]
[355796470,1741567849216,-661.02,0.00057534,120]
[355796471,1741567849227,-201.83143051,0.00057534,10]
[355796472,1741567849238,-100936.37159387,0.000576,71]
[355796473,1741567849249,-10000.0,0.000576,30]
[355796474,1741567849260,-500.0,0.00057808,120]
[355796475,1741567849270,-500.0,0.00057808,120]
[355796476,1741567849280,-500.0,0.00057808,120]
[355796477,1741567849290,-500.0,0.00057808,120]
[355796478,1741567849301,-268.58,0.00057808,120]
[355796479,1741567849311,-500.0,0.00057808,120]
[355796480,1741567849322,-500.0,0.00057808,120]
[355796481,1741567849332,-500.0,0.00057808,120]
[355796482,1741567849343,-500.0,0.00057808,120]
[355796483,1741567849353,-623.2,0.00057808,120]
[355796484,1741567849363,-500.0,0.00057808,120]
[355796485,1741567849373,-500.0,0.00057808,120]
[355796486,1741567849383,-500.0,0.00057808,120]
[355796487,1741567849394,-626.73,0.00057808,120]
[355796488,1741567849405,-1005.52,0.00057808,120]
[355796489,1741567849416,-610.16,0.00057808,120]
[355796490,1741567849427,-500.0,0.00057808,120]
[355796491,1741567849438,-500.0,0.00057808,120]
[355796492,1741567849449,-500.0,0.00057808,120]
[355796493,1741567849580,-540.66,0.00057808,120]
[355796494,1741567849591,-595.44,0.00057808,120]
[355796495,1741567849602,-500.0,0.00057808,120]
[355796496,1741567849612,-1357.25,0.00057808,120]
[355796497,1741567849623,-2110.39,0.00057808,120]
[355796498,1741567849635,-624.58,0.00057808,120]
[355796499,1741567849647,-1942.94,0.00057808,120]
[355796500,1741567849658,-500.0,0.00057808,120]
[355796501,1741567849669,-2362.94,0.00057808,120]
[355796502,1741567849679,-287.3,0.00057808,120]
[355796503,1741567849690,-802.74,0.00057808,120]
[355796504,1741567849700,-994.75,0.00057808,120]
[355796505,1741567849710,-759.18,0.00057808,120]
[355796506,1741567849720,-2333.05,0.00057808,120]
[355796507,1741567849731,-500.0,0.00057808,120]
[355796508,1741567849742,-500.0,0.00057808,120]
[355796509,1741567849753,-535.5570098,0.00057808,120]
[355796510,1741567849764,-500.0,0.00057808,120]
[355796511,1741567849774,-706.42,0.00057808,120]
[355796512,1741567849784,-519.61,0.00057808,120]
[355796513,1741567849794,-500.0,0.00057808,120]
[355796514,1741567849805,-621.82,0.00057808,120]
[355796515,1741567849817,-702.08,0.00057808,120]
[355796516,1741567849831,-661.02,0.00057808,120]
[355796517,1741567849842,-500.0,0.00058082,120]
[355796518,1741567849850,-500.0,0.00058082,120]
[355796519,1741567849859,-500.0,0.00058082,120]
[355796520,1741567849871,-194.34,0.00058082,120]
[355796521,1741567849881,-500.0,0.00058082,120]
[355796522,1741567849898,-402.78,0.00058082,120]
[355796523,1741567849918,-500.0,0.00058082,120]
[355796524,1741567849929,-500.0,0.00058082,120]
[355796525,1741567849939,-623.2,0.00058082,120]
[355796526,1741567849950,-500.0,0.00058082,120]
[355796527,1741567849960,-500.0,0.00058082,120]
[355796528,1741567849970,-647.46,0.00058082,120]
[355796529,1741567849981,-626.73,0.00058082,120]
[355796530,1741567849991,-1005.52,0.00058082,120]
[355796531,1741567850001,-610.16,0.00058082,120]
[355796532,1741567850011,-500.0,0.00058082,120]
[355796533,1741567850020,-216.06,0.00058082,120]
[355796534,1741567850031,-500.0,0.00058082,120]
[355796535,1741567850040,-540.66,0.00058082,120]
[355796536,1741567850068,-595.44,0.00058082,120]
[355796537,1741567850078,-500.0,0.00058082,120]
[355796538,1741567850088,-1357.25,0.00058082,120]
[355796539,1741567850098,-2110.39,0.00058082,120]
[355796540,1741567850108,-624.58,0.00058082,120]
[355796541,1741567850118,-1942.94,0.00058082,120]
[355796542,1741567850128,-500.0,0.00058082,120]
[355796543,1741567850138,-2362.94,0.00058082,120]
[355796544,1741567850148,-802.74,0.00058082,120]
[355796545,1741567850159,-994.75,0.00058082,120]
[355796546,1741567850169,-759.18,0.00058082,120]
[355796547,1741567850178,-2333.05,0.00058082,120]
[355796548,1741567850187,-322.38,0.00058082,120]
[355796549,1741567850199,-500.0,0.00058082,120]
[355796550,1741567850209,-500.0,0.00058082,120]
[355796551,1741567850218,-706.42,0.00058082,120]
[355796552,1741567850229,-519.61,0.00058082,120]
[355796553,1741567850238,-500.0,0.00058082,120]
[355796554,1741567850248,-621.82,0.00058082,120]